[Event "Betsys MČR v online bleskovém šachu 2021"]
[Site "Chess.com"]
[Date "2021.04.17"]
[Round "11"]
[White "vikysachy"]
[Black "horalek"]
[Result "0-1"]
[WhiteElo "860"]
[BlackElo "1331"]
[TimeControl "180+1"]
[EndTime "10:46:40 PDT"]
[Termination "Uživatel horalek zvítězil matem"]

1. e4 {[%clk 0:03:00.9]} 1... e5 {[%clk 0:02:59.4]} 2. Nf3 {[%clk 0:02:59.7]}
2... Nc6 {[%clk 0:02:58.3]} 3. Nc3 {[%clk 0:02:58.9]} 3... Nf6 {[%clk
0:02:54.8]} 4. Bc4 {[%clk 0:02:58.1]} 4... h6 {[%clk 0:02:51.5]} 5. d3 {[%clk
0:02:55.3]} 5... Bc5 {[%clk 0:02:49.6]} 6. Qe2 {[%clk 0:02:53.8]} 6... d6 {[%clk
0:02:48.4]} 7. Be3 {[%clk 0:02:51.5]} 7... Nd4 {[%clk 0:02:41]} 8. Bxd4 {[%clk
0:02:48.7]} 8... exd4 {[%clk 0:02:39.7]} 9. Nd5 {[%clk 0:02:46.5]} 9... Bb6
{[%clk 0:02:33.6]} 10. O-O-O {[%clk 0:02:43]} 10... c6 {[%clk 0:02:27.1]} 11.
Nxf6+ {[%clk 0:02:40.1]} 11... Qxf6 {[%clk 0:02:22.5]} 12. e5 {[%clk 0:02:34.6]}
12... dxe5 {[%clk 0:02:17.4]} 13. Nxe5 {[%clk 0:02:33.8]} 13... O-O {[%clk
0:02:09.5]} 14. Ng4 {[%clk 0:02:19.2]} 14... Qg5+ {[%clk 0:02:04.4]} 15. Kb1
{[%clk 0:02:17.1]} 15... Bxg4 {[%clk 0:02:03.7]} 16. Qe4 {[%clk 0:02:11.3]}
16... Bxd1 {[%clk 0:01:57.3]} 17. Rxd1 {[%clk 0:02:04.6]} 17... Rfe8 {[%clk
0:01:55.3]} 18. Qf3 {[%clk 0:02:01.1]} 18... Re7 {[%clk 0:01:47.6]} 19. g4
{[%clk 0:01:43.7]} 19... Rae8 {[%clk 0:01:45.2]} 20. b3 {[%clk 0:01:38.7]} 20...
Ba5 {[%clk 0:01:41.8]} 21. Qg3 {[%clk 0:01:35]} 21... Re1 {[%clk 0:01:37.5]} 22.
Rxe1 {[%clk 0:01:33]} 22... Rxe1+ {[%clk 0:01:36.7]} 23. Kb2 {[%clk 0:01:32.9]}
23... Qc1# {[%clk 0:01:31.2]} 0-1

[Event "Betsys MČR v online bleskovém šachu 2021"]
[Site "Chess.com"]
[Date "2021.04.17"]
[Round "11"]
[White "pohoda1966"]
[Black "handlovskyjachym"]
[Result "1-0"]
[WhiteElo "1723"]
[BlackElo "1377"]
[TimeControl "180+1"]
[EndTime "10:46:42 PDT"]
[Termination "Uživatel pohoda1966 zvítězil matem"]

1. e4 {[%clk 0:03:00.9]} 1... c5 {[%clk 0:02:59.4]} 2. Nc3 {[%clk 0:02:59.9]}
2... d6 {[%clk 0:02:58.9]} 3. Nf3 {[%clk 0:02:59.6]} 3... Nf6 {[%clk 0:02:58.4]}
4. Bc4 {[%clk 0:02:52.7]} 4... g6 {[%clk 0:02:57.8]} 5. d3 {[%clk 0:02:52.8]}
5... Bg7 {[%clk 0:02:57.4]} 6. O-O {[%clk 0:02:52.8]} 6... O-O {[%clk
0:02:57.5]} 7. a3 {[%clk 0:02:52.8]} 7... Nc6 {[%clk 0:02:57.2]} 8. Bg5 {[%clk
0:02:49.9]} 8... Bd7 {[%clk 0:02:57.1]} 9. h3 {[%clk 0:02:49.8]} 9... Rc8 {[%clk
0:02:54.6]} 10. Re1 {[%clk 0:02:47]} 10... a6 {[%clk 0:02:54.5]} 11. e5 {[%clk
0:02:43.6]} 11... dxe5 {[%clk 0:02:49.5]} 12. Nxe5 {[%clk 0:02:42.5]} 12... Nxe5
{[%clk 0:02:46.6]} 13. Rxe5 {[%clk 0:02:41.3]} 13... Qc7 {[%clk 0:02:46.5]} 14.
Rxe7 {[%clk 0:02:35.8]} 14... Rce8 {[%clk 0:02:36.2]} 15. Bxf6 {[%clk
0:02:10.5]} 15... Bxf6 {[%clk 0:02:28.8]} 16. Nd5 {[%clk 0:02:07.9]} 16... Qd6
{[%clk 0:02:07.1]} 17. Nxf6+ {[%clk 0:02:02.4]} 17... Qxf6 {[%clk 0:02:06]} 18.
Rxe8 {[%clk 0:02:02.1]} 18... Rxe8 {[%clk 0:02:05.8]} 19. c3 {[%clk 0:02:02.4]}
19... Qe5 {[%clk 0:01:58]} 20. d4 {[%clk 0:01:56.8]} 20... cxd4 {[%clk
0:01:52.4]} 21. Qxd4 {[%clk 0:01:51.8]} 21... Qg5 {[%clk 0:01:26.5]} 22. Qxd7
{[%clk 0:01:47.9]} 22... Re2 {[%clk 0:01:21.1]} 23. Qxf7+ {[%clk 0:01:46.1]}
23... Kh8 {[%clk 0:01:17.5]} 24. Qg8# {[%clk 0:01:45.9]} 1-0

[Event "Betsys MČR v online bleskovém šachu 2021"]
[Site "Chess.com"]
[Date "2021.04.17"]
[Round "11"]
[White "Diamantidis_13"]
[Black "DenryS"]
[Result "1-0"]
[WhiteElo "2454"]
[BlackElo "2192"]
[TimeControl "180+1"]
[EndTime "10:46:51 PDT"]
[Termination "Uživatel Diamantidis_13 zvítězil po vzdání soupeře"]

1. Nf3 {[%clk 0:03:00.2]} 1... d5 {[%clk 0:02:59.8]} 2. d4 {[%clk 0:02:59]} 2...
Nc6 {[%clk 0:03:00.1]} 3. c4 {[%clk 0:02:52.3]} 3... Bg4 {[%clk 0:02:59.6]} 4.
Nc3 {[%clk 0:02:49.9]} 4... Nf6 {[%clk 0:02:47]} 5. Bf4 {[%clk 0:02:45.7]} 5...
Bxf3 {[%clk 0:02:38.3]} 6. exf3 {[%clk 0:02:40.5]} 6... dxc4 {[%clk 0:02:36.5]}
7. d5 {[%clk 0:02:41]} 7... Nb8 {[%clk 0:02:29]} 8. Bxc4 {[%clk 0:02:40.1]} 8...
g6 {[%clk 0:02:25.9]} 9. Qd2 {[%clk 0:02:21.7]} 9... Bg7 {[%clk 0:02:24.4]} 10.
Bh6 {[%clk 0:02:19.5]} 10... O-O {[%clk 0:02:23.9]} 11. O-O-O {[%clk 0:02:18.3]}
11... Nbd7 {[%clk 0:02:22.6]} 12. h4 {[%clk 0:02:17.3]} 12... Nb6 {[%clk
0:02:21.1]} 13. Bb3 {[%clk 0:02:17]} 13... c6 {[%clk 0:02:15.3]} 14. h5 {[%clk
0:02:15]} 14... cxd5 {[%clk 0:02:09.3]} 15. hxg6 {[%clk 0:02:11.1]} 15... fxg6
{[%clk 0:02:09.4]} 16. Bxg7 {[%clk 0:02:07.3]} 16... Kxg7 {[%clk 0:02:09.5]} 17.
Qh6+ {[%clk 0:02:07.1]} 17... Kg8 {[%clk 0:02:09]} 18. Nxd5 {[%clk 0:02:01.3]}
18... Nbxd5 {[%clk 0:01:23]} 19. Rxd5 {[%clk 0:01:59]} 1-0

[Event "Betsys MČR v online bleskovém šachu 2021"]
[Site "Chess.com"]
[Date "2021.04.17"]
[Round "11"]
[White "TomasOrnet1"]
[Black "catanist19"]
[Result "0-1"]
[WhiteElo "1505"]
[BlackElo "1743"]
[TimeControl "180+1"]
[EndTime "10:46:53 PDT"]
[Termination "Uživatel catanist19 zvítězil po vzdání soupeře"]

1. e4 {[%clk 0:03:00.2]} 1... c5 {[%clk 0:02:59.3]} 2. Bc4 {[%clk 0:02:58.9]}
2... e6 {[%clk 0:02:58.4]} 3. Nf3 {[%clk 0:02:58.3]} 3... Nc6 {[%clk 0:02:57.3]}
4. c3 {[%clk 0:02:56.7]} 4... Be7 {[%clk 0:02:53.6]} 5. b3 {[%clk 0:02:55.6]}
5... d5 {[%clk 0:02:52.5]} 6. exd5 {[%clk 0:02:53.9]} 6... exd5 {[%clk
0:02:52.3]} 7. Be2 {[%clk 0:02:47.1]} 7... Nf6 {[%clk 0:02:50.1]} 8. Bb2 {[%clk
0:02:42.7]} 8... O-O {[%clk 0:02:48.7]} 9. O-O {[%clk 0:02:41.6]} 9... Bf5
{[%clk 0:02:45.6]} 10. d4 {[%clk 0:02:40.8]} 10... Bd6 {[%clk 0:02:41.2]} 11.
dxc5 {[%clk 0:02:36.3]} 11... Bxc5 {[%clk 0:02:40]} 12. Nbd2 {[%clk 0:02:30.5]}
12... Ne4 {[%clk 0:02:33.9]} 13. Nxe4 {[%clk 0:02:29.1]} 13... dxe4 {[%clk
0:02:29.9]} 14. Qxd8 {[%clk 0:02:18.2]} 14... Raxd8 {[%clk 0:02:28]} 15. Nh4
{[%clk 0:02:11]} 15... Bg6 {[%clk 0:02:17.5]} 16. Rad1 {[%clk 0:02:04.2]} 16...
Be7 {[%clk 0:02:13.1]} 17. Nxg6 {[%clk 0:02:00.8]} 17... fxg6 {[%clk 0:02:10.3]}
18. Bc4+ {[%clk 0:01:45.7]} 18... Kh8 {[%clk 0:02:09]} 19. Bd5 {[%clk
0:01:45.1]} 19... e3 {[%clk 0:01:58.7]} 20. c4 {[%clk 0:01:06]} 20... e2 {[%clk
0:01:54.9]} 21. Bxc6 {[%clk 0:01:04.1]} 21... exf1=Q+ {[%clk 0:01:52.5]} 0-1

[Event "Betsys MČR v online bleskovém šachu 2021"]
[Site "Chess.com"]
[Date "2021.04.17"]
[Round "11"]
[White "phil3"]
[Black "androidddd"]
[Result "1-0"]
[WhiteElo "2107"]
[BlackElo "1462"]
[TimeControl "180+1"]
[EndTime "10:46:54 PDT"]
[Termination "Uživatel phil3 zvítězil po vzdání soupeře"]

1. e4 {[%clk 0:03:00.9]} 1... c6 {[%clk 0:02:53.3]} 2. d4 {[%clk 0:03:00.4]}
2... d5 {[%clk 0:02:49.5]} 3. exd5 {[%clk 0:03:00.6]} 3... cxd5 {[%clk
0:02:48.2]} 4. c4 {[%clk 0:03:00.8]} 4... Nf6 {[%clk 0:02:45.2]} 5. Nc3 {[%clk
0:03:01]} 5... Nc6 {[%clk 0:02:42.7]} 6. Nf3 {[%clk 0:03:01.2]} 6... Bg4 {[%clk
0:02:40.2]} 7. cxd5 {[%clk 0:03:01.5]} 7... Nxd5 {[%clk 0:02:38.5]} 8. Qb3
{[%clk 0:03:01.6]} 8... Bxf3 {[%clk 0:02:20.3]} 9. gxf3 {[%clk 0:03:01.5]} 9...
Nxc3 {[%clk 0:02:15.6]} 10. bxc3 {[%clk 0:03:01.3]} 10... Qc7 {[%clk 0:02:11.8]}
11. Rb1 {[%clk 0:02:57.5]} 11... b6 {[%clk 0:02:06.7]} 12. Bb5 {[%clk 0:02:53]}
12... e6 {[%clk 0:01:53.8]} 13. d5 {[%clk 0:02:47]} 13... exd5 {[%clk
0:01:45.3]} 14. Qxd5 {[%clk 0:02:46.1]} 14... Rc8 {[%clk 0:01:41.7]} 15. O-O
{[%clk 0:02:38.2]} 15... Be7 {[%clk 0:01:13.4]} 16. Re1 {[%clk 0:02:36.7]} 16...
Qd7 {[%clk 0:00:59.6]} 17. c4 {[%clk 0:02:21.8]} 17... O-O {[%clk 0:00:21.6]}
18. Qxd7 {[%clk 0:02:20.5]} 1-0

[Event "Betsys MČR v online bleskovém šachu 2021"]
[Site "Chess.com"]
[Date "2021.04.17"]
[Round "11"]
[White "Dale00007"]
[Black "psvoboda72"]
[Result "0-1"]
[WhiteElo "1389"]
[BlackElo "1692"]
[TimeControl "180+1"]
[EndTime "10:47:00 PDT"]
[Termination "Uživatel psvoboda72 zvítězil matem"]

1. e4 {[%clk 0:03:00.8]} 1... e5 {[%clk 0:02:58.8]} 2. Nf3 {[%clk 0:02:59.5]}
2... Nc6 {[%clk 0:02:59.2]} 3. Bb5 {[%clk 0:02:58.7]} 3... a6 {[%clk 0:02:57.7]}
4. Ba4 {[%clk 0:02:57.6]} 4... Nf6 {[%clk 0:02:58.1]} 5. O-O {[%clk 0:02:56]}
5... Be7 {[%clk 0:02:58.5]} 6. Re1 {[%clk 0:02:54.5]} 6... b5 {[%clk 0:02:59.1]}
7. Bb3 {[%clk 0:02:54]} 7... O-O {[%clk 0:02:58.4]} 8. c3 {[%clk 0:02:52.1]}
8... d5 {[%clk 0:02:56.7]} 9. exd5 {[%clk 0:02:45.8]} 9... Nxd5 {[%clk
0:02:55.2]} 10. Nxe5 {[%clk 0:02:34.6]} 10... Nxe5 {[%clk 0:02:50.4]} 11. Rxe5
{[%clk 0:02:32.6]} 11... c6 {[%clk 0:02:49.5]} 12. d4 {[%clk 0:02:24.3]} 12...
Bd6 {[%clk 0:02:48.7]} 13. Re1 {[%clk 0:01:55.3]} 13... Qh4 {[%clk 0:02:44.5]}
14. g4 {[%clk 0:01:45.8]} 14... Qxh2+ {[%clk 0:02:35]} 15. Kf1 {[%clk 0:01:20]}
15... Qh1+ {[%clk 0:02:29.3]} 16. Ke2 {[%clk 0:01:19.7]} 16... Bxg4+ {[%clk
0:02:25.6]} 17. f3 {[%clk 0:01:18.5]} 17... Qg2+ {[%clk 0:02:20.8]} 18. Kd3
{[%clk 0:01:17]} 18... Bxf3 {[%clk 0:02:13.1]} 19. Qc2 {[%clk 0:01:04.2]} 19...
Qg6+ {[%clk 0:02:07.1]} 20. Kd2 {[%clk 0:01:00.7]} 20... Bf4+ {[%clk 0:02:04.1]}
21. Re3 {[%clk 0:00:54.7]} 21... Bxe3+ {[%clk 0:02:01.3]} 22. Ke1 {[%clk
0:00:50.8]} 22... Qg1# {[%clk 0:01:57.5]} 0-1

[Event "Betsys MČR v online bleskovém šachu 2021"]
[Site "Chess.com"]
[Date "2021.04.17"]
[Round "11"]
[White "valid88"]
[Black "FMD-MP"]
[Result "0-1"]
[WhiteElo "1371"]
[BlackElo "1720"]
[TimeControl "180+1"]
[EndTime "10:47:01 PDT"]
[Termination "Uživatel FMD-MP zvítězil po vzdání soupeře"]

1. d4 {[%clk 0:02:29.9]} 1... Nf6 {[%clk 0:02:58.2]} 2. c4 {[%clk 0:02:20.7]}
2... e5 {[%clk 0:02:58.2]} 3. dxe5 {[%clk 0:02:17.4]} 3... Ng4 {[%clk
0:02:58.1]} 4. Nf3 {[%clk 0:02:15.4]} 4... Bc5 {[%clk 0:02:57.5]} 5. e3 {[%clk
0:02:11.9]} 5... Nc6 {[%clk 0:02:57.5]} 6. a3 {[%clk 0:02:09]} 6... a5 {[%clk
0:02:56.4]} 7. Nc3 {[%clk 0:02:06]} 7... O-O {[%clk 0:02:56.2]} 8. Bd3 {[%clk
0:02:04.3]} 8... Re8 {[%clk 0:02:56.3]} 9. Bc2 {[%clk 0:02:03.3]} 9... Ngxe5
{[%clk 0:02:56.2]} 10. Nxe5 {[%clk 0:02:03]} 10... Nxe5 {[%clk 0:02:56.9]} 11.
O-O {[%clk 0:02:03]} 11... d6 {[%clk 0:02:55.9]} 12. b3 {[%clk 0:01:59.9]} 12...
c6 {[%clk 0:02:54.7]} 13. Bb2 {[%clk 0:01:59.8]} 13... Qh4 {[%clk 0:02:52.6]}
14. Ne4 {[%clk 0:01:41]} 14... Ng4 {[%clk 0:02:43.9]} 15. h3 {[%clk 0:01:37.5]}
15... Nxf2 {[%clk 0:02:07.5]} 16. Nxf2 {[%clk 0:01:17.6]} 16... Bxe3 {[%clk
0:01:56.6]} 17. Bd4 {[%clk 0:01:05.9]} 17... Qxd4 {[%clk 0:01:47.3]} 18. Qh5
{[%clk 0:00:59.1]} 18... Bxf2+ {[%clk 0:01:43.8]} 19. Rxf2 {[%clk 0:00:58.3]}
19... Qxa1+ {[%clk 0:01:42.3]} 20. Kh2 {[%clk 0:00:57.3]} 20... Qe5+ {[%clk
0:01:39.6]} 21. Qxe5 {[%clk 0:00:57.2]} 0-1

[Event "Betsys MČR v online bleskovém šachu 2021"]
[Site "Chess.com"]
[Date "2021.04.17"]
[Round "11"]
[White "Tobish"]
[Black "vadoto"]
[Result "1-0"]
[WhiteElo "1683"]
[BlackElo "1402"]
[TimeControl "180+1"]
[EndTime "10:47:05 PDT"]
[Termination "Uživatel Tobish zvítězil matem"]

1. e4 {[%clk 0:03:00.9]} 1... e5 {[%clk 0:02:58.9]} 2. Nf3 {[%clk 0:03:01.3]}
2... Nc6 {[%clk 0:02:58.8]} 3. d4 {[%clk 0:03:02]} 3... exd4 {[%clk 0:02:58.3]}
4. Nxd4 {[%clk 0:03:02.9]} 4... Bc5 {[%clk 0:02:57.3]} 5. Be3 {[%clk 0:03:02.7]}
5... d6 {[%clk 0:02:56.5]} 6. Be2 {[%clk 0:02:59]} 6... Qf6 {[%clk 0:02:54.1]}
7. c3 {[%clk 0:02:58.4]} 7... Nge7 {[%clk 0:02:53.2]} 8. O-O {[%clk 0:02:57.5]}
8... O-O {[%clk 0:02:49.5]} 9. Nxc6 {[%clk 0:02:53.5]} 9... Nxc6 {[%clk
0:02:41.4]} 10. Bxc5 {[%clk 0:02:49.4]} 10... dxc5 {[%clk 0:02:41.1]} 11. Na3
{[%clk 0:02:40.6]} 11... Qg6 {[%clk 0:02:38.9]} 12. Qc2 {[%clk 0:02:38.4]} 12...
Bh3 {[%clk 0:02:37.7]} 13. Bf3 {[%clk 0:02:38.1]} 13... Ne5 {[%clk 0:02:36.3]}
14. Qe2 {[%clk 0:02:28.8]} 14... Rfe8 {[%clk 0:02:19]} 15. Kh1 {[%clk
0:02:27.7]} 15... Nxf3 {[%clk 0:02:12.2]} 16. Qxf3 {[%clk 0:02:26.4]} 16... Bg4
{[%clk 0:02:11.6]} 17. Qe3 {[%clk 0:02:20.6]} 17... Rxe4 {[%clk 0:02:09.3]} 18.
Qxc5 {[%clk 0:02:19.3]} 18... c6 {[%clk 0:02:03]} 19. f3 {[%clk 0:02:10.4]}
19... Bxf3 {[%clk 0:01:44.3]} 20. Rxf3 {[%clk 0:02:07.6]} 20... Re2 {[%clk
0:01:42.8]} 21. Rf2 {[%clk 0:02:06]} 21... Rae8 {[%clk 0:01:42]} 22. Raf1 {[%clk
0:02:00.9]} 22... Rxf2 {[%clk 0:01:38.3]} 23. Qxf2 {[%clk 0:01:59.5]} 23... f6
{[%clk 0:01:31.1]} 24. Nc4 {[%clk 0:01:58]} 24... Qe4 {[%clk 0:01:27.7]} 25. Nd6
{[%clk 0:01:55.2]} 25... Qe7 {[%clk 0:01:26.2]} 26. Nxe8 {[%clk 0:01:53.7]}
26... Qxe8 {[%clk 0:01:26.5]} 27. Re1 {[%clk 0:01:54]} 27... Qf7 {[%clk
0:01:26.4]} 28. Qd2 {[%clk 0:01:51.6]} 28... Qxa2 {[%clk 0:01:24.9]} 29. h3
{[%clk 0:01:45.3]} 29... Qc4 {[%clk 0:01:20.8]} 30. Qd7 {[%clk 0:01:39.9]} 30...
Qb5 {[%clk 0:01:17.4]} 31. Re8# {[%clk 0:01:39.2]} 1-0

[Event "Betsys MČR v online bleskovém šachu 2021"]
[Site "Chess.com"]
[Date "2021.04.17"]
[Round "11"]
[White "honzasoucek"]
[Black "HerjoAnpe"]
[Result "1-0"]
[WhiteElo "1625"]
[BlackElo "1259"]
[TimeControl "180+1"]
[EndTime "10:47:07 PDT"]
[Termination "Uživatel honzasoucek zvítězil po vzdání soupeře"]

1. e4 {[%clk 0:03:00.9]} 1... e6 {[%clk 0:02:57]} 2. d4 {[%clk 0:02:59.4]} 2...
d5 {[%clk 0:02:56.9]} 3. Nd2 {[%clk 0:02:59.9]} 3... dxe4 {[%clk 0:02:56.3]} 4.
Nxe4 {[%clk 0:02:59.5]} 4... Nc6 {[%clk 0:02:56.4]} 5. Be3 {[%clk 0:02:53.6]}
5... Nf6 {[%clk 0:02:55]} 6. Nxf6+ {[%clk 0:02:49.6]} 6... Qxf6 {[%clk
0:02:53.8]} 7. Nf3 {[%clk 0:02:48.9]} 7... Bb4+ {[%clk 0:02:48.5]} 8. c3 {[%clk
0:02:47.6]} 8... Ba5 {[%clk 0:02:48.2]} 9. Bb5 {[%clk 0:02:46.1]} 9... O-O
{[%clk 0:02:46.1]} 10. O-O {[%clk 0:02:43.6]} 10... Rd8 {[%clk 0:02:44.7]} 11.
Bxc6 {[%clk 0:02:36.9]} 11... bxc6 {[%clk 0:02:44]} 12. b4 {[%clk 0:02:36.1]}
12... Bb6 {[%clk 0:02:43.2]} 13. Qc2 {[%clk 0:02:30.5]} 13... h6 {[%clk
0:02:39.2]} 14. a4 {[%clk 0:02:21.5]} 14... a5 {[%clk 0:02:38.2]} 15. Rfe1
{[%clk 0:02:17.9]} 15... axb4 {[%clk 0:02:36.3]} 16. cxb4 {[%clk 0:02:17.6]}
16... Ba7 {[%clk 0:02:32.7]} 17. Qxc6 {[%clk 0:02:15.3]} 17... Bd7 {[%clk
0:02:29.3]} 18. Qxc7 {[%clk 0:02:11]} 18... Qe7 {[%clk 0:02:09.3]} 19. Ne5
{[%clk 0:02:08.9]} 19... f6 {[%clk 0:02:05.6]} 20. Nc6 {[%clk 0:02:08.7]} 20...
Bxc6 {[%clk 0:02:00.1]} 21. Qxe7 {[%clk 0:02:08]} 21... Rd5 {[%clk 0:01:43.2]}
22. Qxe6+ {[%clk 0:02:06.9]} 22... Kh7 {[%clk 0:01:33.9]} 23. Qxc6 {[%clk
0:02:07]} 23... Rad8 {[%clk 0:01:26.4]} 24. b5 {[%clk 0:02:04.2]} 24... Bxd4
{[%clk 0:01:24.3]} 25. Bxd4 {[%clk 0:02:03.8]} 25... Rxd4 {[%clk 0:01:24.4]} 26.
g3 {[%clk 0:02:03.1]} 26... Rd2 {[%clk 0:01:19.8]} 27. b6 {[%clk 0:01:55.9]}
27... Rb2 {[%clk 0:01:18.6]} 28. b7 {[%clk 0:01:55.3]} 28... Rdd2 {[%clk
0:01:17.7]} 29. Rf1 {[%clk 0:01:55.6]} 29... Rdc2 {[%clk 0:01:11.8]} 30. Qxc2+
{[%clk 0:01:53]} 30... Rxc2 {[%clk 0:01:11]} 31. b8=Q {[%clk 0:01:52.8]} 1-0

[Event "Betsys MČR v online bleskovém šachu 2021"]
[Site "Chess.com"]
[Date "2021.04.17"]
[Round "11"]
[White "pepca"]
[Black "rakintsev"]
[Result "1-0"]
[WhiteElo "1551"]
[BlackElo "1726"]
[TimeControl "180+1"]
[EndTime "10:47:18 PDT"]
[Termination "Uživatel pepca zvítězil po vzdání soupeře"]

1. e4 {[%clk 0:03:00.9]} 1... c6 {[%clk 0:02:57]} 2. c4 {[%clk 0:02:59.5]} 2...
d5 {[%clk 0:02:54.4]} 3. cxd5 {[%clk 0:02:58.9]} 3... cxd5 {[%clk 0:02:54.4]} 4.
exd5 {[%clk 0:02:59.1]} 4... Qxd5 {[%clk 0:02:54.3]} 5. Nc3 {[%clk 0:02:59]}
5... Qe5+ {[%clk 0:02:53.7]} 6. Be2 {[%clk 0:02:57.3]} 6... Nf6 {[%clk
0:02:53.5]} 7. Nf3 {[%clk 0:02:56.7]} 7... Qd6 {[%clk 0:02:37.3]} 8. d4 {[%clk
0:02:53.4]} 8... Nc6 {[%clk 0:02:35.9]} 9. Nb5 {[%clk 0:02:50.6]} 9... Qb8
{[%clk 0:02:32.1]} 10. d5 {[%clk 0:02:35.9]} 10... a6 {[%clk 0:02:13.9]} 11.
dxc6 {[%clk 0:02:31.4]} 11... axb5 {[%clk 0:02:13.3]} 12. Bxb5 {[%clk
0:02:30.5]} 12... bxc6 {[%clk 0:02:05.2]} 13. Bxc6+ {[%clk 0:02:29.8]} 13... Bd7
{[%clk 0:02:04]} 14. Bxa8 {[%clk 0:02:28.7]} 14... Qxa8 {[%clk 0:02:02.1]} 15.
O-O {[%clk 0:02:25.9]} 15... e6 {[%clk 0:02:01.1]} 16. Bf4 {[%clk 0:02:20.6]}
16... Be7 {[%clk 0:01:59.1]} 17. Bd6 {[%clk 0:02:18.8]} 17... Qd8 {[%clk
0:01:50]} 18. Bxe7 {[%clk 0:02:15.8]} 18... Qxe7 {[%clk 0:01:49.8]} 19. Ne5
{[%clk 0:02:12.1]} 19... O-O {[%clk 0:01:48.4]} 20. Nxd7 {[%clk 0:02:11.2]}
20... Nxd7 {[%clk 0:01:47.5]} 21. Rc1 {[%clk 0:02:11.2]} 21... Rd8 {[%clk
0:01:45.8]} 22. Rc7 {[%clk 0:02:09.5]} 22... Qe8 {[%clk 0:01:31.8]} 23. Qa4
{[%clk 0:02:06.3]} 23... Nf6 {[%clk 0:01:26.8]} 24. Qxe8+ {[%clk 0:02:04.5]}
24... Rxe8 {[%clk 0:01:26.8]} 25. Rfc1 {[%clk 0:02:03.4]} 25... h6 {[%clk
0:01:20.5]} 26. Rc8 {[%clk 0:02:02.3]} 26... Rxc8 {[%clk 0:01:18.7]} 27. Rxc8+
{[%clk 0:02:00.9]} 27... Kh7 {[%clk 0:01:17.8]} 28. b4 {[%clk 0:01:59]} 28...
Nd5 {[%clk 0:01:18.2]} 29. b5 {[%clk 0:01:59.1]} 29... Kg6 {[%clk 0:01:14.9]}
30. Rc6 {[%clk 0:01:53.9]} 30... Nb4 {[%clk 0:01:12]} 31. Rd6 {[%clk 0:01:52.4]}
31... Kf6 {[%clk 0:01:05.6]} 32. b6 {[%clk 0:01:51.7]} 32... Ke7 {[%clk
0:01:04.9]} 33. b7 {[%clk 0:01:49.9]} 1-0

[Event "Betsys MČR v online bleskovém šachu 2021"]
[Site "Chess.com"]
[Date "2021.04.17"]
[Round "11"]
[White "Lisak007"]
[Black "pkozubik"]
[Result "1-0"]
[WhiteElo "1827"]
[BlackElo "1197"]
[TimeControl "180+1"]
[EndTime "10:47:21 PDT"]
[Termination "Uživatel Lisak007 zvítězil matem"]

1. e4 {[%clk 0:02:58.9]} 1... c6 {[%clk 0:02:58.7]} 2. d4 {[%clk 0:02:56.5]}
2... d5 {[%clk 0:02:59.6]} 3. e5 {[%clk 0:02:53.6]} 3... Bf5 {[%clk 0:02:59.2]}
4. c3 {[%clk 0:02:52.9]} 4... e6 {[%clk 0:02:59.3]} 5. Bd3 {[%clk 0:02:53]} 5...
Bxd3 {[%clk 0:02:58.2]} 6. Qxd3 {[%clk 0:02:53.2]} 6... c5 {[%clk 0:02:59.1]} 7.
f4 {[%clk 0:02:53.1]} 7... c4 {[%clk 0:02:55.1]} 8. Qe2 {[%clk 0:02:51.9]} 8...
Ne7 {[%clk 0:02:50.5]} 9. Nf3 {[%clk 0:02:49.8]} 9... h6 {[%clk 0:02:45.6]} 10.
O-O {[%clk 0:02:49.7]} 10... Nf5 {[%clk 0:02:45.4]} 11. Nbd2 {[%clk 0:02:43.8]}
11... Be7 {[%clk 0:02:43.4]} 12. a3 {[%clk 0:02:43]} 12... O-O {[%clk
0:02:41.8]} 13. g4 {[%clk 0:02:43]} 13... Nh4 {[%clk 0:02:27.8]} 14. Nxh4 {[%clk
0:02:43.1]} 14... Bxh4 {[%clk 0:02:27]} 15. Nf3 {[%clk 0:02:42.9]} 15... Nc6
{[%clk 0:02:18.5]} 16. f5 {[%clk 0:02:42.2]} 16... Be7 {[%clk 0:02:06.3]} 17. f6
{[%clk 0:02:39.6]} 17... gxf6 {[%clk 0:02:06.3]} 18. Bxh6 {[%clk 0:02:39.1]}
18... fxe5 {[%clk 0:02:02]} 19. Bxf8 {[%clk 0:02:38.1]} 19... Bxf8 {[%clk
0:01:59.9]} 20. Nxe5 {[%clk 0:02:38.1]} 20... Nxe5 {[%clk 0:01:56]} 21. Qxe5
{[%clk 0:02:38.1]} 21... Qh4 {[%clk 0:01:55.9]} 22. Qg3 {[%clk 0:02:32.8]} 22...
Qg5 {[%clk 0:01:52.6]} 23. h4 {[%clk 0:02:25.8]} 23... Qd2 {[%clk 0:01:50.3]}
24. Rf2 {[%clk 0:02:25.1]} 24... Qh6 {[%clk 0:01:45.1]} 25. g5 {[%clk
0:02:24.3]} 25... Qg6 {[%clk 0:01:43.3]} 26. Raf1 {[%clk 0:02:21.2]} 26... Bh6
{[%clk 0:01:30.3]} 27. Rf6 {[%clk 0:02:19.3]} 27... Qg7 {[%clk 0:01:26.3]} 28.
Rxh6 {[%clk 0:02:18.5]} 28... Rf8 {[%clk 0:01:19.1]} 29. Rhf6 {[%clk 0:02:16.9]}
29... Qh7 {[%clk 0:01:11]} 30. g6 {[%clk 0:02:10.5]} 30... Qg7 {[%clk
0:01:11.1]} 31. gxf7+ {[%clk 0:02:08.4]} 31... Rxf7 {[%clk 0:01:08.9]} 32. Qxg7+
{[%clk 0:02:08]} 32... Rxg7+ {[%clk 0:01:09.1]} 33. Kh2 {[%clk 0:02:08]} 33...
b5 {[%clk 0:01:06.3]} 34. Rxe6 {[%clk 0:02:07.8]} 34... a5 {[%clk 0:01:03.4]}
35. Kh3 {[%clk 0:02:07.2]} 35... Kh7 {[%clk 0:00:58.6]} 36. h5 {[%clk
0:02:06.7]} 36... Rg8 {[%clk 0:00:54.5]} 37. Rf7+ {[%clk 0:02:05.1]} 37... Kh8
{[%clk 0:00:52.7]} 38. Rh6# {[%clk 0:02:03.8]} 1-0